Workbook

Sheet How to Guide
B2: Project and Budget Report
B3: This document is used as part of your application for funding, and if successful, also for reporting. APPLICATION: When applying for funding, we will need to see tab 1 (columns B-G) and tab 2 (columns B-F) completed. SUCESSFULL APPLICATIONS: In tab 1, click on "Open Periods" button and populate the budget figure in relevant periods in line with figures in column 'F'. REPORTING: If your application is successful, you will use this document to submit funding claims and provide project updates. Tabs 1 and 3 will need updating and this will be discussed further in your offer.
B5: There are 6 sections to complete:
B6: Tab 1. | C6: Budget Vs Actual
C7: Please insert your project budget (columns B-G at application stage). If your applicaiton is successful, you will be required to include your projected cashflow for each period (this will be outlined in the contract). This will allow you to plan when you require your grant instalments from ScreenSkills. When reporting, you will record your actual spend (actual column) next to your forecasted spend (budget column) on each line of your approved budget. You will then be asked to submit the corresponding proof of expenditure for randomly selected expenses. You can define the number of claims you wish to make when creating your cashflow, this can depend on the length of your project and your cashflow needs, please add dates as you see fit. Please do not amend any formulae in this document.
B8: Tab 2 | C8: Risk Analysis
C9: On this tab you should identify the risks, constraints and dependencies in delivering the project and outline how these will be managed. Please see examples given for guidance.
B10: Tab 3. | C10: Project Report
C11: In this section, you will report on the progress of your project. At application stage we expect you to complete columns B-I. If successful, you will be expected to update ScreenSkills on your project each period when claiming funds, as well as any variance in participant numbers and finances.
B12: Tab 4. | C12: Claim Form
C13: Once you have completed the update for each period in tab 1, the Claim form will work out how much you are owed based on formulae. This is for ScreenSKills use only, all formulae should NOT be changed. When making a claim we require you to print this page off and sign it, before scanning the signed copy and returning it to us. This confirms that you are happy with the amount to be claimed. Please do not alter any of the formulae on this form.
B14: Final reports
C15: Final narrative report for all awards
C16: You are expected to complete a final narrative report once your training/programme ends, this information will be circulated with your offer if successful. This should tell us about what went well with the programme and how it could be improved. This report should draw on feedback from participants, facilitators and industry partners, collected during the project, about their views on the organisation and delivery of the programme. Please speak to your ScreenSkills contact if you require further information.
C17: Independent Audit (for grants of £50k and over)
C18: If the total value of your ScreenSkills grant is £50,000 or greater, your project will need to be audited upon completion by an external auditor. Please contact the Fund Team for further information on audit requirements. This cost should be factored into your budget (evaluation section).
B19: Notes
C20: VAT
C21: If you are VAT-registered, please note that this funding is out of scope and therefore no VAT can be claimed against any costs which you might incur on this programme. You may wish to seek additional guidance from HMRC.
B22: Need any help?
B23: If you have any questions or run into any problems using the Project and Budget report please contact the Fund Team 020 7713 9800

Sheet EXAMPLE Budget vs Actual
C2: Organisation Name: | E2: Trainers R Us
C3: Project Title: | E3: Camera Skills | I3: This is an example budget and cashflow. It shows the level of detail that is required for the breakdown of a project budget.
C4: Project Ref No: | E4: ScreenSkills generated | V4: Click button to fill in the budget per period if your application is successful
C5: Project start date: | E5: 2022-01-04
C6: Project end date: | E6: 2022-12-31
B7: Budget vs Actual | I7: Jan - Mar 22 | K7: Apr - Jun 22 | M7: Jul - Sep 22 | O7: Oct - Dec 22
I8: Period 1 | K8: Period 2 | M8: Period 3 | O8: Period 4
B9: PARTNERSHIP FUNDING (INCOME) BUDGET
B11: Partnership Funding CASH - (Source) Description/Details | C11: Units e.g. days | D11: Number | E11: Unit Income £ | F11: Total (£) | G11: % of project costs | I11: Budget P1 (£) | J11: Actuals P1 (£) | K11: Budget P2 (£) | L11: Actuals P2 (£) | M11: Budget P3 (£) | N11: Actuals P3 (£) | O11: Budget P4 (£) | P11: Actuals P4 (£) | Q11: Total Budget | R11: Total Actual | S11: Variance (£) | T11: Reason for any difference +/- £1,000
B12: Participants' Fees (20 participants x £300) | C12: Participants | D12: 20 | E12: 300 | F12: =E12*D12 -> 6000 | G12: =IF($F$150=0,"",F12/$F$150) -> 0.2382843527 | K12: 2000 | M12: 4000 | Q12: =IF(SUMIF($I$11:$P$11,"*budget*",$I12:$P12)=F12,SUMIF($I$11:$P$11,"*budget*",$I12:$P12),"Error in Period Budget") -> 6000 | R12: =SUMIF($I$11:$P$11,"*actual*",$I12:$P12) -> 0 | S12: =F12-R12 -> 6000
F13: 0 | G13: 0 | Q13: =IF(SUMIF($I$11:$P$11,"*budget*",$I13:$P13)=F13,SUMIF($I$11:$P$11,"*budget*",$I13:$P13),"Error in Period Budget") -> 0 | R13: 0 | S13: 0
F14: 0 | G14: 0 | Q14: 0 | R14: 0 | S14: 0
F15: 0 | G15: 0 | Q15: 0 | R15: 0 | S15: 0
F16: 0 | G16: 0 | Q16: 0 | R16: 0 | S16: 0
F17: 0 | G17: 0 | Q17: 0 | R17: 0 | S17: 0
F18: 0 | G18: 0 | Q18: 0 | R18: 0 | S18: 0
B19: Total (A) | F19: =SUM(F12:F18) -> 6000 | G19: 0.2382843527 | I19: 0 | J19: 0 | K19: 2000 | L19: 0 | M19: 4000 | N19: 0 | O19: 0 | P19: 0 | Q19: =SUM(Q12:Q18) -> 6000 | R19: 0 | S19: 6000
B21: Partnership Funding 'IN-KIND' SUPPORT - (Source) Description/Details | C21: Units e.g. days | D21: Number | E21: Unit Income £ | F21: Total (£) | G21: % of project costs | I21: Budget P1 (£) | J21: Actuals P1 (£) | K21: Budget P2 (£) | L21: Actuals P2 (£) | M21: Budget P3 (£) | N21: Actuals P3 (£) | O21: Budget P4 (£) | P21: Actuals P4 (£) | Q21: Total Budget | R21: Total Actual | S21: Variance (£) | T21: Reason for any difference +/- £1,000
B22: Camera equipment loan by Camera Inc. (20 cameras) | C22: Days | D22: 6 | E22: 1000 | F22: =E22*D22 -> 6000 | G22: =IF($F$150=0,"",F22/$F$150) -> 0.2382843527 | K22: 2000 | M22: 2000 | O22: 2000 | Q22: =IF(SUMIF($I$11:$P$11,"*budget*",$I22:$P22)=F22,SUMIF($I$11:$P$11,"*budget*",$I22:$P22),"Error in Period Budget") -> 6000 | R22: =SUMIF($I$11:$P$11,"*actual*",$I22:$P22) -> 0 | S22: =F22-R22 -> 6000
B23: Room Hire (Conference Centre Edinburgh) | C23: Days | D23: 6 | E23: 175 | F23: 1050 | G23: 0.04169976172 | K23: 350 | M23: 350 | O23: 350 | Q23: 1050 | R23: 0 | S23: 1050
B24: Website updating by our web developers (Web Inc.) | D24: 1 | E24: 350 | F24: 350 | G24: 0.01389992057 | I24: 350 | Q24: 350 | R24: 0 | S24: 350
F25: 0 | G25: 0 | Q25: 0 | R25: 0 | S25: 0
F26: =E26*D26 -> 0 | G26: 0 | Q26: 0 | R26: 0 | S26: 0
F27: 0 | G27: 0 | Q27: 0 | R27: 0 | S27: 0
F28: 0 | G28: 0 | Q28: 0 | R28: 0 | S28: 0
B29: Total (B) | F29: =SUM(F22:F28) -> 7400 | G29: 0.2938840349 | I29: 350 | J29: 0 | K29: 2350 | L29: 0 | M29: 2350 | N29: 0 | O29: 2350 | P29: 0 | Q29: =SUM(Q22:Q28) -> 7400 | R29: 0 | S29: 7400
B31: Partnership Funding Subtotal (Cash & In-kind) (A+B) | F31: =F19+F29 -> 13400 | G31: =G29+G19 -> 0.5321683876 | I31: =I19+I29 -> 350 | J31: 0 | K31: 4350 | L31: 0 | M31: 6350 | N31: 0 | O31: 2350 | P31: 0 | Q31: 13400 | R31: 0 | S31: 13400
B34: ScreenSkills Funding | F34: Total (£) | G34: % of project costs | I34: Budget P1 (£) | J34: Actuals P1 (£) | K34: Budget P2 (£) | L34: Actuals P2 (£) | M34: Budget P3 (£) | N34: Actuals P3 (£) | O34: Budget P4 (£) | P34: Actuals P4 (£) | Q34: Total Budget | R34: Total Actual | S34: Variance (£) | T34: Reason for any difference +/- £1,000
B35: ScreenSkills Funding | E35: 11780 | F35: =E35 -> 11780 | G35: =IF($F$150=0,"",F35/$F$150) -> 0.4678316124 | I35: 2962.5 | K35: 3847.5 | M35: 397.5 | O35: 4572.5 | Q35: =SUMIF($I$11:$P$11,"*budget*",$I35:$P35) -> 11780 | R35: =SUMIF($I$11:$P$11,"*actual*",$I35:$P35) -> 0 | S35: =F35-R35 -> 11780
B36: Total ScreenSkills Funding (C) | F36: =SUM(F35:F35) -> 11780 | G36: 0.4678316124 | I36: 2962.5 | J36: 0 | K36: 3847.5 | L36: 0 | M36: 397.5 | N36: 0 | O36: 4572.5 | P36: 0 | Q36: 11780 | R36: 0 | S36: 11780
B39: Project Income TOTAL (Partnership Funding Total + ScreenSkills Total) (A+B+C) | F39: =F31+F36 -> 25180 | G39: 1 | I39: 3312.5 | J39: 0 | K39: 8197.5 | L39: 0 | M39: 6747.5 | N39: 0 | O39: 6922.5 | P39: 0 | Q39: 25180 | R39: 0 | S39: 25180
B43: PROJECT EXPENDITURE BUDGET
B45: Training (speakers, venue hire, travel for those delivering training etc) | C45: Units e.g. days | D45: Number | E45: Unit Cost £ | F45: Total (£) | G45: % of project costs | I45: Budget P1 (£) | J45: Actuals P1 (£) | K45: Budget P2 (£) | L45: Actuals P2 (£) | M45: Budget P3 (£) | N45: Actuals P3 (£) | O45: Budget P4 (£) | P45: Actuals P4 (£) | Q45: Total Budget | R45: Total Actual | S45: Variance (£) | T45: Reason for any difference +/- £1,000
B46: Trainer fee - Adam Smith | C46: Days | D46: 6 | E46: 700 | F46: =E46*D46 -> 4200 | G46: =IF($F$150=0,"",F46/$F$150) -> 0.1667990469 | K46: 1400 | M46: 1400 | O46: 1400 | Q46: =IF(SUMIF($I$11:$P$11,"*budget*",$I46:$P46)=F46,SUMIF($I$11:$P$11,"*budget*",$I46:$P46),"Error in Period Budget") -> 4200 | R46: =SUMIF($I$11:$P$11,"*actual*",$I46:$P46) -> 0 | S46: =F46-R46 -> 4200
B47: Course manual for 20 participants | D47: 20 | E47: 10 | F47: 200 | G47: 0.007942811755 | I47: 200 | Q47: 200 | R47: 0 | S47: 200
B48: Course tutor's travel costs to Edinburgh from Glasgow for 6 days training | C48: Days | D48: 6 | E48: 50 | F48: 300 | G48: 0.01191421763 | K48: 125 | M48: 125 | O48: 50 | Q48: 300 | R48: 0 | S48: 300
B49: Technical assistant for 6 days training | C49: Days | D49: 6 | E49: 200 | F49: 1200 | G49: 0.04765687053 | K49: 400 | M49: 400 | O49: 400 | Q49: 1200 | R49: 0 | S49: 1200
B50: Subsistence for participants | C50: 6 days for 21 ppl | D50: 6 | E50: 105 | F50: 630 | G50: 0.02501985703 | K50: 210 | M50: 210 | O50: 210 | Q50: 630 | R50: 0 | S50: 630
B51: Room Hire (Conference Centre Edinburgh) (In Kind) | C51: Days | D51: 6 | E51: 175 | F51: 1050 | G51: 0.04169976172 | K51: 350 | M51: 350 | O51: 350 | Q51: 1050 | R51: 0 | S51: 1050
F52: 0 | G52: 0 | Q52: 0 | R52: 0 | S52: 0
F53: 0 | G53: 0 | Q53: 0 | R53: 0 | S53: 0
F54: 0 | G54: 0 | Q54: 0 | R54: 0 | S54: 0
F55: 0 | G55: 0 | Q55: 0 | R55: 0 | S55: 0
F56: 0 | G56: 0 | Q56: 0 | R56: 0 | S56: 0
B57: Total | F57: =SUM(F46:F56) -> 7580 | G57: 0.3010325655 | I57: 200 | J57: 0 | K57: 2485 | L57: 0 | M57: 2485 | N57: 0 | O57: 2410 | P57: 0 | Q57: 7580 | R57: 0 | S57: 7580
B59: Project Management (e.g. Intenal managers, administrators) | C59: Units e.g. days | D59: Number | E59: Unit Cost £ | F59: Total (£) | G59: % of project costs | I59: Budget P1 (£) | J59: Actuals P1 (£) | K59: Budget P2 (£) | L59: Actuals P2 (£) | M59: Budget P3 (£) | N59: Actuals P3 (£) | O59: Budget P4 (£) | P59: Actuals P4 (£) | Q59: Total Budget | R59: Total Actual | S59: Variance (£) | T59: Reason for any difference +/- £1,000
B60: Project Manager 2 days per week for 4 mths | C60: Days | D60: 20 | E60: 250 | F60: =E60*D60 -> 5000 | G60: =IF($F$150=0,"",F60/$F$150) -> 0.1985702939 | I60: 1250 | K60: 1250 | M60: 1250 | O60: 1250 | Q60: =IF(SUMIF($I$11:$P$11,"*budget*",$I60:$P60)=F60,SUMIF($I$11:$P$11,"*budget*",$I60:$P60),"Error in Period Budget") -> 5000 | R60: =SUMIF($I$11:$P$11,"*actual*",$I60:$P60) -> 0 | S60: =F60-R60 -> 5000
B61: Project Coordinator 1 day per month for 4 mths | C61: Days | D61: 11 | E61: 150 | F61: 1650 | G61: 0.06552819698 | I61: 412.5 | K61: 412.5 | M61: 412.5 | O61: 412.5 | Q61: 1650 | R61: 0 | S61: 1650
B62: Travel to Edinburgh (return) | C62: Director + Coordinator | D62: 2 | E62: 225 | F62: 450 | G62: 0.01787132645 | K62: 450 | Q62: 450 | R62: 0 | S62: 450
F63: 0 | G63: 0 | Q63: 0 | R63: 0 | S63: 0
F64: 0 | G64: 0 | Q64: 0 | R64: 0 | S64: 0
F65: 0 | G65: 0 | Q65: 0 | R65: 0 | S65: 0
F66: 0 | G66: 0 | Q66: 0 | R66: 0 | S66: 0
F67: 0 | G67: 0 | Q67: 0 | R67: 0 | S67: 0
F68: 0 | G68: 0 | Q68: 0 | R68: 0 | S68: 0
F69: 0 | G69: 0 | Q69: 0 | R69: 0 | S69: 0
B70: Total | F70: =SUM(F60:F69) -> 7100 | G70: 0.2819698173 | I70: 1662.5 | J70: 0 | K70: 2112.5 | L70: 0 | M70: 1662.5 | N70: 0 | O70: 1662.5 | P70: 0 | Q70: =SUM(Q60:Q69) -> 7100 | R70: 0 | S70: 7100
B72: Overheads (rent, light, heating etc) | C72: Units e.g. days | D72: Number | E72: Unit Cost £ | F72: Total (£) | G72: % of project costs | I72: Budget P1 (£) | J72: Actuals P1 (£) | K72: Budget P2 (£) | L72: Actuals P2 (£) | M72: Budget P3 (£) | N72: Actuals P3 (£) | O72: Budget P4 (£) | P72: Actuals P4 (£) | Q72: Total Budget | R72: Total Actual | S72: Variance (£) | T72: Reason for any difference +/- £1,000
B73: 10% of office rent | D73: 12 | E73: 100 | F73: =E73*D73 -> 1200 | G73: =IF($F$150=0,"",F73/$F$150) -> 0.04765687053 | I73: 300 | K73: 300 | M73: 300 | O73: 300 | Q73: =IF(SUMIF($I$11:$P$11,"*budget*",$I73:$P73)=F73,SUMIF($I$11:$P$11,"*budget*",$I73:$P73),"Error in Period Budget") -> 1200 | R73: =SUMIF($I$11:$P$11,"*actual*",$I73:$P73) -> 0 | S73: =F73-R73 -> 1200
B74: Lighting | D74: 12 | E74: 50 | F74: 600 | G74: 0.02382843527 | I74: 150 | K74: 150 | M74: 150 | O74: 150 | Q74: 600 | R74: 0 | S74: 600
B75: Heating | D75: 12 | E75: 50 | F75: 600 | G75: 0.02382843527 | I75: 150 | K75: 150 | M75: 150 | O75: 150 | Q75: 600 | R75: 0 | S75: 600
F76: 0 | G76: 0 | Q76: 0 | R76: 0 | S76: 0
F77: 0 | G77: 0 | Q77: 0 | R77: 0 | S77: 0
F78: 0 | G78: 0 | Q78: 0 | R78: 0 | S78: 0
F79: 0 | G79: 0 | Q79: 0 | R79: 0 | S79: 0
F80: 0 | G80: 0 | Q80: 0 | R80: 0 | S80: 0
F81: 0 | G81: 0 | Q81: 0 | R81: 0 | S81: 0
F82: 0 | G82: 0 | Q82: 0 | R82: 0 | S82: 0
B83: Total | F83: =SUM(F73:F82) -> 2400 | G83: 0.09531374106 | I83: 600 | J83: 0 | K83: 600 | L83: 0 | M83: 600 | N83: 0 | O83: 600 | P83: 0 | Q83: =SUM(Q73:Q82) -> 2400 | R83: 0 | S83: 2400
B85: Marketing/Recruitment | C85: Units e.g. days | D85: Number | E85: Unit Cost £ | F85: Total (£) | G85: % of project costs | I85: Budget P1 (£) | J85: Actuals P1 (£) | K85: Budget P2 (£) | L85: Actuals P2 (£) | M85: Budget P3 (£) | N85: Actuals P3 (£) | O85: Budget P4 (£) | P85: Actuals P4 (£) | Q85: Total Budget | R85: Total Actual | S85: Variance (£) | T85: Reason for any difference +/- £1,000
B86: Art work design | D86: 1 | E86: 500 | F86: =E86*D86 -> 500 | G86: =IF($F$150=0,"",F86/$F$150) -> 0.01985702939 | I86: 500 | Q86: =IF(SUMIF($I$11:$P$11,"*budget*",$I86:$P86)=F86,SUMIF($I$11:$P$11,"*budget*",$I86:$P86),"Error in Period Budget") -> 500 | R86: =SUMIF($I$11:$P$11,"*actual*",$I86:$P86) -> 0 | S86: =F86-R86 -> 500
B87: Website (in kind) | D87: 1 | E87: 350 | F87: 350 | G87: 0.01389992057 | I87: 350 | Q87: 350 | R87: 0 | S87: 350
F88: 0 | G88: 0 | Q88: 0 | R88: 0 | S88: 0
F89: 0 | G89: 0 | Q89: 0 | R89: 0 | S89: 0
F90: 0 | G90: 0 | Q90: 0 | R90: 0 | S90: 0
F91: 0 | G91: 0 | Q91: 0 | R91: 0 | S91: 0
F92: 0 | G92: 0 | Q92: 0 | R92: 0 | S92: 0
F93: 0 | G93: 0 | Q93: 0 | R93: 0 | S93: 0
F94: 0 | G94: 0 | Q94: 0 | R94: 0 | S94: 0
F95: 0 | G95: 0 | Q95: 0 | R95: 0 | S95: 0
B96: Total | F96: =SUM(F86:F95) -> 850 | G96: 0.03375694996 | I96: 850 | J96: 0 | K96: 0 | L96: 0 | M96: 0 | N96: 0 | O96: 0 | P96: 0 | Q96: =SUM(Q86:Q95) -> 850 | R96: 0 | S96: 850
B98: Access Support (Childcare cost, Disability Support, Hardship) | C98: Units e.g. days | D98: Number | E98: Unit Cost £ | F98: Total (£) | G98: % of project costs | I98: Budget P1 (£) | J98: Actuals P1 (£) | K98: Budget P2 (£) | L98: Actuals P2 (£) | M98: Budget P3 (£) | N98: Actuals P3 (£) | O98: Budget P4 (£) | P98: Actuals P4 (£) | Q98: Total Budget | R98: Total Actual | S98: Variance (£) | T98: Reason for any difference +/- £1,000
B99: Travel costs for participants with access needs | C99: Participants | D99: 5 | E99: 200 | F99: =E99*D99 -> 1000 | G99: =IF($F$150=0,"",F99/$F$150) -> 0.03971405878 | K99: 1000 | Q99: =IF(SUMIF($I$11:$P$11,"*budget*",$I99:$P99)=F99,SUMIF($I$11:$P$11,"*budget*",$I99:$P99),"Error in Period Budget") -> 1000 | R99: =SUMIF($I$11:$P$11,"*actual*",$I99:$P99) -> 0 | S99: =F99-R99 -> 1000
F100: 0 | G100: 0 | Q100: 0 | R100: 0 | S100: 0
F101: 0 | G101: 0 | Q101: 0 | R101: 0 | S101: 0
F102: 0 | G102: 0 | Q102: 0 | R102: 0 | S102: 0
F103: 0 | G103: 0 | Q103: 0 | R103: 0 | S103: 0
F104: 0 | G104: 0 | Q104: 0 | R104: 0 | S104: 0
F105: 0 | G105: 0 | Q105: 0 | R105: 0 | S105: 0
F106: 0 | G106: 0 | Q106: 0 | R106: 0 | S106: 0
F107: 0 | G107: 0 | Q107: 0 | R107: 0 | S107: 0
F108: 0 | G108: 0 | Q108: 0 | R108: 0 | S108: 0
B109: Total | F109: =SUM(F99:F108) -> 1000 | G109: 0.03971405878 | I109: 0 | J109: 0 | K109: 1000 | L109: 0 | M109: 0 | N109: 0 | O109: 0 | P109: 0 | Q109: =SUM(Q99:Q108) -> 1000 | R109: 0 | S109: 1000
B111: Equipment | C111: Units e.g. days | D111: Number | E111: Unit Cost £ | F111: Total (£) | G111: % of project costs | I111: Budget P1 (£) | J111: Actuals P1 (£) | K111: Budget P2 (£) | L111: Actuals P2 (£) | M111: Budget P3 (£) | N111: Actuals P3 (£) | O111: Budget P4 (£) | P111: Actuals P4 (£) | Q111: Total Budget | R111: Total Actual | S111: Variance (£) | T111: Reason for any difference +/- £1,000
B112: Camera equipment loan by Camera Inc. (20 cameras) (in kind) | C112: Days | D112: 6 | E112: 1000 | F112: =E112*D112 -> 6000 | G112: =IF($F$150=0,"",F112/$F$150) -> 0.2382843527 | K112: 2000 | M112: 2000 | O112: 2000 | Q112: =IF(SUMIF($I$11:$P$11,"*budget*",$I112:$P112)=F112,SUMIF($I$11:$P$11,"*budget*",$I112:$P112),"Error in Period Budget") -> 6000 | R112: =SUMIF($I$11:$P$11,"*actual*",$I112:$P112) -> 0 | S112: =F112-R112 -> 6000
F113: 0 | G113: 0 | Q113: 0 | R113: 0 | S113: 0
F114: 0 | G114: 0 | Q114: 0 | R114: 0 | S114: 0
F115: 0 | G115: 0 | Q115: 0 | R115: 0 | S115: 0
F116: 0 | G116: 0 | Q116: 0 | R116: 0 | S116: 0
F117: 0 | G117: 0 | Q117: 0 | R117: 0 | S117: 0
F118: 0 | G118: 0 | Q118: 0 | R118: 0 | S118: 0
F119: 0 | G119: 0 | Q119: 0 | R119: 0 | S119: 0
F120: 0 | G120: 0 | Q120: 0 | R120: 0 | S120: 0
F121: 0 | G121: 0 | Q121: 0 | R121: 0 | S121: 0
B122: Total | F122: =SUM(F112:F121) -> 6000 | G122: 0.2382843527 | I122: 0 | J122: 0 | K122: 2000 | L122: 0 | M122: 2000 | N122: 0 | O122: 2000 | P122: 0 | Q122: =SUM(Q112:Q121) -> 6000 | R122: 0 | S122: 6000
B124: Other (please provide breakdown of any costs that do not fit into other areas of ths budget) | C124: Units e.g. days | D124: Number | E124: Unit Cost £ | F124: Total (£) | G124: % of project costs | I124: Budget P1 (£) | J124: Actuals P1 (£) | K124: Budget P2 (£) | L124: Actuals P2 (£) | M124: Budget P3 (£) | N124: Actuals P3 (£) | O124: Budget P4 (£) | P124: Actuals P4 (£) | Q124: Total Budget | R124: Total Actual | S124: Variance (£) | T124: Reason for any difference +/- £1,000
F125: =E125*D125 -> 0 | G125: =IF($F$150=0,"",F125/$F$150) -> 0 | Q125: =IF(SUMIF($I$11:$P$11,"*budget*",$I125:$P125)=F125,SUMIF($I$11:$P$11,"*budget*",$I125:$P125),"Error in Period Budget") -> 0 | R125: =SUMIF($I$11:$P$11,"*actual*",$I125:$P125) -> 0 | S125: =F125-R125 -> 0
F126: 0 | G126: 0 | Q126: 0 | R126: 0 | S126: 0
F127: 0 | G127: 0 | Q127: 0 | R127: 0 | S127: 0
F128: 0 | G128: 0 | Q128: 0 | R128: 0 | S128: 0
F129: 0 | G129: 0 | Q129: 0 | R129: 0 | S129: 0
F130: 0 | G130: 0 | Q130: 0 | R130: 0 | S130: 0
F131: 0 | G131: 0 | Q131: 0 | R131: 0 | S131: 0
F132: 0 | G132: 0 | Q132: 0 | R132: 0 | S132: 0
F133: 0 | G133: 0 | Q133: 0 | R133: 0 | S133: 0
F134: 0 | G134: 0 | Q134: 0 | R134: 0 | S134: 0
B135: Total | F135: =SUM(F125:F134) -> 0 | G135: 0 | I135: 0 | J135: 0 | K135: 0 | L135: 0 | M135: 0 | N135: 0 | O135: 0 | P135: 0 | Q135: =SUM(Q125:Q134) -> 0 | R135: 0 | S135: 0
B137: Evaluation (for projects where ScreenSkills fuding amounts to £50,000 + only will require and independent audit. Remember to budget for this) | C137: Units e.g. days | D137: Number | E137: Unit Cost £ | F137: Total (£) | G137: % of project costs | I137: Budget P1 (£) | J137: Actuals P1 (£) | K137: Budget P2 (£) | L137: Actuals P2 (£) | M137: Budget P3 (£) | N137: Actuals P3 (£) | O137: Budget P4 (£) | P137: Actuals P4 (£) | Q137: Total Budget | R137: Total Actual | S137: Variance (£) | T137: Reason for any difference +/- £1,000
B138: Project Evaluation by Project Manager to work on narrative report | C138: Days | D138: 1 | E138: 250 | F138: =E138*D138 -> 250 | G138: =IF($F$150=0,"",F138/$F$150) -> 0.009928514694 | O138: 250 | Q138: =IF(SUMIF($I$11:$P$11,"*budget*",$I138:$P138)=F138,SUMIF($I$11:$P$11,"*budget*",$I138:$P138),"Error in Period Budget") -> 250 | R138: =SUMIF($I$11:$P$11,"*actual*",$I138:$P138) -> 0 | S138: =F138-R138 -> 250
F139: 0 | G139: 0 | Q139: =IF(SUMIF($I$11:$P$11,"*budget*",$I139:$P139)=F139,SUMIF($I$11:$P$11,"*budget*",$I139:$P139),"Error in Period Budget") -> 0 | R139: 0 | S139: 0
F140: 0 | G140: 0 | Q140: 0 | R140: 0 | S140: 0
F141: 0 | G141: 0 | Q141: 0 | R141: 0 | S141: 0
F142: 0 | G142: 0 | Q142: 0 | R142: 0 | S142: 0
F143: 0 | G143: 0 | Q143: 0 | R143: 0 | S143: 0
F144: 0 | G144: 0 | Q144: 0 | R144: 0 | S144: 0
F145: 0 | G145: 0 | Q145: 0 | R145: 0 | S145: 0
F146: 0 | G146: 0 | Q146: 0 | R146: 0 | S146: 0
F147: 0 | G147: 0 | Q147: 0 | R147: 0 | S147: 0
B148: Total | F148: =SUM(F138:F147) -> 250 | G148: 0.009928514694 | I148: 0 | J148: 0 | K148: 0 | L148: 0 | M148: 0 | N148: 0 | O148: 250 | P148: 0 | Q148: =SUM(Q138:Q147) -> 250 | R148: 0 | S148: 250
B150: TOTAL PROJECT EXPENDITURE - ( C ) | F150: =F57+F70+F83+F96+F109+F135+F122+F148 -> 25180 | G150: =G57+G70+G83+G96+G109+G135+G122+G148 -> 1 | I150: =I148+I135+I122+I109+I96+I83+I57+I70 -> 3312.5 | J150: 0 | K150: 8197.5 | L150: 0 | M150: 6747.5 | N150: 0 | O150: 6922.5 | P150: 0 | Q150: 25180 | R150: 0 | S150: 25180
C152: ScreenSkills USE ONLY | I152: ScreenSkills USE ONLY
C154: Project Summary | I154: =I137 -> Budget P1 (£) | J154: Actuals P1 (£) | K154: Budget P2 (£) | L154: Actuals P2 (£) | M154: Budget P3 (£) | N154: Actuals P3 (£) | O154: Budget P4 (£) | P154: Actuals P4 (£) | Q154: Total Budget | R154: Total Actual | S154: Variance
C155: Total Project Income | F155: =F39 -> 25180 | I155: =I39 -> 3312.5 | J155: 0 | K155: 8197.5 | L155: 0 | M155: 6747.5 | N155: 0 | O155: 6922.5 | P155: 0 | Q155: =SUMIF($I$11:$P$11,"*budget*",$I155:$P155) -> 25180 | R155: =SUMIF($I$11:$P$11,"*actual*",$I155:$P155) -> 0 | S155: =F155-R155 -> 25180
C156: Total Project Expenditure | F156: =F150 -> 25180 | I156: =I150 -> 3312.5 | J156: 0 | K156: 8197.5 | L156: 0 | M156: 6747.5 | N156: 0 | O156: 6922.5 | P156: 0 | Q156: =SUMIF($I$11:$P$11,"*budget*",$I156:$P156) -> 25180 | R156: =SUMIF($I$11:$P$11,"*actual*",$I156:$P156) -> 0 | S156: =F156-R156 -> 25180
C157: Total Project Cost (expenditure minus income) | F157: =F156-F155 -> 0 | I157: =I155-I156 -> 0 | J157: 0 | K157: 0 | L157: 0 | M157: 0 | N157: 0 | O157: 0 | P157: 0 | Q157: 0 | R157: 0 | S157: 0
B159: Narrative on Overheads & Project Management Costs
B160: Please use this section to tell us how you have calculated your overheads and project management costs:
B175: Notes to the Budget

Sheet 1. Budget vs Actual
C2: Organisation Name: | E2: Please add
C3: Project Title: | E3: Please add
C4: Project Ref No: | E4: ScreenSkills generated | V4: Click button to fill in the budget per period if your application is successful
C5: Project start date: | E5: Please add
C6: Project end date: | E6: Please add
B7: Budget vs Actual | I7: Date to be added e.g. Jan - Mar 22 | K7: Date to be added | M7: Date to be added | O7: Date to be added
I8: Period 1 | K8: Period 2 | M8: Period 3 | O8: Period 4
B9: PARTNERSHIP FUNDING (INCOME) BUDGET
B11: Partnership Funding CASH - (Source) Description/Details | C11: Units e.g. days | D11: Number | E11: Unit Income £ | F11: Total (£) | G11: % of project costs | I11: Budget P1 (£) | J11: Actuals P1 (£) | K11: Budget P2 (£) | L11: Actuals P2 (£) | M11: Budget P3 (£) | N11: Actuals P3 (£) | O11: Budget P4 (£) | P11: Actuals P4 (£) | Q11: Total Budget | R11: Total Actual | S11: Variance (£) | T11: Reason for any difference +/- £1,000
F12: =E12*D12 -> 0 | G12: =IF($F$150=0,"",F12/$F$150) ->  | Q12: =IF(SUMIF($I$11:$P$11,"*budget*",$I12:$P12)=F12,SUMIF($I$11:$P$11,"*budget*",$I12:$P12),"Error in Period Budget") -> 0 | R12: =SUMIF($I$11:$P$11,"*actual*",$I12:$P12) -> 0 | S12: =F12-R12 -> 0
F13: 0 | Q13: =IF(SUMIF($I$11:$P$11,"*budget*",$I13:$P13)=F13,SUMIF($I$11:$P$11,"*budget*",$I13:$P13),"Error in Period Budget") -> 0 | R13: 0 | S13: 0
F14: 0 | Q14: 0 | R14: 0 | S14: 0
F15: 0 | Q15: 0 | R15: 0 | S15: 0
F16: 0 | Q16: 0 | R16: 0 | S16: 0
F17: 0 | Q17: 0 | R17: 0 | S17: 0
F18: =E18*D18 -> 0 | Q18: 0 | R18: 0 | S18: 0
B19: Total (A) | F19: =SUM(F12:F18) -> 0 | G19: 0 | I19: 0 | J19: 0 | K19: 0 | L19: 0 | M19: 0 | N19: 0 | O19: 0 | P19: 0 | Q19: =SUM(Q12:Q18) -> 0 | R19: 0 | S19: 0
B21: Partnership Funding 'IN-KIND' SUPPORT - (Source) Description/Details | C21: Units e.g. days | D21: Number | E21: Unit Income £ | F21: Total (£) | G21: % of project costs | I21: Budget P1 (£) | J21: Actuals P1 (£) | K21: Budget P2 (£) | L21: Actuals P2 (£) | M21: Budget P3 (£) | N21: Actuals P3 (£) | O21: Budget P4 (£) | P21: Actuals P4 (£) | Q21: Total Budget | R21: Total Actual | S21: Variance (£) | T21: Reason for any difference +/- £1,000
F22: =E22*D22 -> 0 | G22: =IF($F$150=0,"",F22/$F$150) ->  | Q22: =IF(SUMIF($I$11:$P$11,"*budget*",$I22:$P22)=F22,SUMIF($I$11:$P$11,"*budget*",$I22:$P22),"Error in Period Budget") -> 0 | R22: =SUMIF($I$11:$P$11,"*actual*",$I22:$P22) -> 0 | S22: =F22-R22 -> 0
F23: 0 | Q23: 0 | R23: 0 | S23: 0
F24: =E24*D24 -> 0 | Q24: 0 | R24: 0 | S24: 0
F25: 0 | Q25: 0 | R25: 0 | S25: 0
F26: =E26*D26 -> 0 | Q26: 0 | R26: 0 | S26: 0
F27: 0 | Q27: 0 | R27: 0 | S27: 0
F28: 0 | Q28: 0 | R28: 0 | S28: 0
B29: Total (B) | F29: =SUM(F22:F28) -> 0 | G29: 0 | I29: 0 | J29: 0 | K29: 0 | L29: 0 | M29: 0 | N29: 0 | O29: 0 | P29: 0 | Q29: =SUM(Q22:Q28) -> 0 | R29: 0 | S29: 0
B31: Partnership Funding Subtotal (Cash & In-kind) (A+B) | F31: =F19+F29 -> 0 | G31: =G29+G19 -> 0 | I31: =I19+I29 -> 0 | J31: 0 | K31: 0 | L31: 0 | M31: 0 | N31: 0 | O31: 0 | P31: 0 | Q31: =Q19+Q29 -> 0 | R31: 0 | S31: 0
B34: ScreenSkills Funding | F34: Total (£) | G34: % of project costs | I34: Budget P1 (£) | J34: Actuals P1 (£) | K34: Budget P2 (£) | L34: Actuals P2 (£) | M34: Budget P3 (£) | N34: Actuals P3 (£) | O34: Budget P4 (£) | P34: Actuals P4 (£) | Q34: Total Budget | R34: Total Actual | S34: Variance (£) | T34: Reason for any difference +/- £1,000
B35: ScreenSkills Funding | F35: =E35 -> 0 | G35: =IF($F$150=0,"",F35/$F$150) ->  | Q35: =SUMIF($I$11:$P$11,"*budget*",$I35:$P35) -> 0 | R35: =SUMIF($I$11:$P$11,"*actual*",$I35:$P35) -> 0 | S35: =F35-R35 -> 0
B36: Total ScreenSkills Funding (C) | F36: =SUM(F35:F35) -> 0 | G36: 0 | I36: 0 | J36: 0 | K36: 0 | L36: 0 | M36: 0 | N36: 0 | O36: 0 | P36: 0 | Q36: 0 | R36: 0 | S36: 0
B39: Project Income TOTAL (Partnership Funding Total + ScreenSkills Total) (A+B+C) | F39: =F31+F36 -> 0 | G39: 0 | I39: 0 | J39: 0 | K39: 0 | L39: 0 | M39: 0 | N39: 0 | O39: 0 | P39: 0 | Q39: 0 | R39: 0 | S39: 0
B43: PROJECT EXPENDITURE BUDGET
B45: Training (speakers, venue hire, travel for those delivering training etc) | C45: Units e.g. days | D45: Number | E45: Unit Cost £ | F45: Total (£) | G45: % of project costs | I45: Budget P1 (£) | J45: Actuals P1 (£) | K45: Budget P2 (£) | L45: Actuals P2 (£) | M45: Budget P3 (£) | N45: Actuals P3 (£) | O45: Budget P4 (£) | P45: Actuals P4 (£) | Q45: Total Budget | R45: Total Actual | S45: Variance (£) | T45: Reason for any difference +/- £1,000
F46: =E46*D46 -> 0 | G46: =IF($F$150=0,"",F46/$F$150) ->  | Q46: =IF(SUMIF($I$11:$P$11,"*budget*",$I46:$P46)=F46,SUMIF($I$11:$P$11,"*budget*",$I46:$P46),"Error in Period Budget") -> 0 | R46: =SUMIF($I$11:$P$11,"*actual*",$I46:$P46) -> 0 | S46: =F46-R46 -> 0
F47: 0 | Q47: =IF(SUMIF($I$11:$P$11,"*budget*",$I47:$P47)=F47,SUMIF($I$11:$P$11,"*budget*",$I47:$P47),"Error in Period Budget") -> 0 | R47: 0 | S47: =F47-R47 -> 0
F48: 0 | Q48: 0 | R48: 0 | S48: 0
F49: 0 | Q49: 0 | R49: 0 | S49: 0
F50: 0 | Q50: 0 | R50: 0 | S50: 0
F51: 0 | Q51: 0 | R51: 0 | S51: 0
F52: 0 | Q52: 0 | R52: 0 | S52: 0
F53: 0 | Q53: 0 | R53: 0 | S53: 0
F54: 0 | Q54: 0 | R54: 0 | S54: 0
F55: 0 | Q55: 0 | R55: 0 | S55: 0
F56: 0 | Q56: 0 | R56: 0 | S56: 0
B57: Total | F57: =SUM(F46:F56) -> 0 | G57: 0 | I57: 0 | J57: 0 | K57: 0 | L57: 0 | M57: 0 | N57: 0 | O57: 0 | P57: 0 | Q57: 0 | R57: 0 | S57: 0
B59: Project Management (e.g. Intenal managers, administrators) | C59: Units e.g. days | D59: Number | E59: Unit Cost £ | F59: Total (£) | G59: % of project costs | I59: Budget P1 (£) | J59: Actuals P1 (£) | K59: Budget P2 (£) | L59: Actuals P2 (£) | M59: Budget P3 (£) | N59: Actuals P3 (£) | O59: Budget P4 (£) | P59: Actuals P4 (£) | Q59: Total Budget | R59: Total Actual | S59: Variance (£) | T59: Reason for any difference +/- £1,000
F60: =E60*D60 -> 0 | G60: =IF($F$150=0,"",F60/$F$150) ->  | Q60: =IF(SUMIF($I$11:$P$11,"*budget*",$I60:$P60)=F60,SUMIF($I$11:$P$11,"*budget*",$I60:$P60),"Error in Period Budget") -> 0 | R60: =SUMIF($I$11:$P$11,"*actual*",$I60:$P60) -> 0 | S60: =F60-R60 -> 0
F61: 0 | Q61: 0 | R61: 0 | S61: 0
F62: 0 | Q62: 0 | R62: 0 | S62: 0
F63: 0 | Q63: 0 | R63: 0 | S63: 0
F64: 0 | Q64: 0 | R64: 0 | S64: 0
F65: 0 | Q65: 0 | R65: 0 | S65: 0
F66: 0 | Q66: 0 | R66: 0 | S66: 0
F67: 0 | Q67: 0 | R67: 0 | S67: 0
F68: 0 | Q68: 0 | R68: 0 | S68: 0
F69: 0 | Q69: 0 | R69: 0 | S69: 0
B70: Total | F70: =SUM(F60:F69) -> 0 | G70: 0 | I70: 0 | J70: 0 | K70: 0 | L70: 0 | M70: 0 | N70: 0 | O70: 0 | P70: 0 | Q70: =SUM(Q60:Q69) -> 0 | R70: 0 | S70: 0
B72: Overheads (rent, light, heating etc) | C72: Units e.g. days | D72: Number | E72: Unit Cost £ | F72: Total (£) | G72: % of project costs | I72: Budget P1 (£) | J72: Actuals P1 (£) | K72: Budget P2 (£) | L72: Actuals P2 (£) | M72: Budget P3 (£) | N72: Actuals P3 (£) | O72: Budget P4 (£) | P72: Actuals P4 (£) | Q72: Total Budget | R72: Total Actual | S72: Variance (£) | T72: Reason for any difference +/- £1,000
F73: =E73*D73 -> 0 | G73: =IF($F$150=0,"",F73/$F$150) ->  | Q73: =IF(SUMIF($I$11:$P$11,"*budget*",$I73:$P73)=F73,SUMIF($I$11:$P$11,"*budget*",$I73:$P73),"Error in Period Budget") -> 0 | R73: =SUMIF($I$11:$P$11,"*actual*",$I73:$P73) -> 0 | S73: =F73-R73 -> 0
F74: 0 | Q74: 0 | R74: 0 | S74: 0
F75: 0 | Q75: 0 | R75: 0 | S75: 0
F76: 0 | Q76: 0 | R76: 0 | S76: 0
F77: 0 | Q77: 0 | R77: 0 | S77: 0
F78: 0 | Q78: 0 | R78: 0 | S78: 0
F79: 0 | Q79: 0 | R79: 0 | S79: 0
F80: 0 | Q80: 0 | R80: 0 | S80: 0
F81: 0 | Q81: 0 | R81: 0 | S81: 0
F82: 0 | Q82: 0 | R82: 0 | S82: 0
B83: Total | F83: =SUM(F73:F82) -> 0 | G83: 0 | I83: 0 | J83: 0 | K83: 0 | L83: 0 | M83: 0 | N83: 0 | O83: 0 | P83: 0 | Q83: =SUM(Q73:Q82) -> 0 | R83: 0 | S83: 0
B85: Marketing/Recruitment | C85: Units e.g. days | D85: Number | E85: Unit Cost £ | F85: Total (£) | G85: % of project costs | I85: Budget P1 (£) | J85: Actuals P1 (£) | K85: Budget P2 (£) | L85: Actuals P2 (£) | M85: Budget P3 (£) | N85: Actuals P3 (£) | O85: Budget P4 (£) | P85: Actuals P4 (£) | Q85: Total Budget | R85: Total Actual | S85: Variance (£) | T85: Reason for any difference +/- £1,000
F86: =E86*D86 -> 0 | G86: =IF($F$150=0,"",F86/$F$150) ->  | Q86: =IF(SUMIF($I$11:$P$11,"*budget*",$I86:$P86)=F86,SUMIF($I$11:$P$11,"*budget*",$I86:$P86),"Error in Period Budget") -> 0 | R86: =SUMIF($I$11:$P$11,"*actual*",$I86:$P86) -> 0 | S86: =F86-R86 -> 0
F87: 0 | Q87: 0 | R87: 0 | S87: 0
F88: 0 | Q88: 0 | R88: 0 | S88: 0
F89: 0 | Q89: 0 | R89: 0 | S89: 0
F90: 0 | Q90: 0 | R90: 0 | S90: 0
F91: 0 | Q91: 0 | R91: 0 | S91: 0
F92: 0 | Q92: 0 | R92: 0 | S92: 0
F93: 0 | Q93: 0 | R93: 0 | S93: 0
F94: 0 | Q94: 0 | R94: 0 | S94: 0
F95: 0 | Q95: 0 | R95: 0 | S95: 0
B96: Total | F96: =SUM(F86:F95) -> 0 | G96: 0 | I96: 0 | J96: 0 | K96: 0 | L96: 0 | M96: 0 | N96: 0 | O96: 0 | P96: 0 | Q96: =SUM(Q86:Q95) -> 0 | R96: 0 | S96: 0
B98: Access Support (Childcare cost, Disability Support, Hardship) | C98: Units e.g. days | D98: Number | E98: Unit Cost £ | F98: Total (£) | G98: % of project costs | I98: Budget P1 (£) | J98: Actuals P1 (£) | K98: Budget P2 (£) | L98: Actuals P2 (£) | M98: Budget P3 (£) | N98: Actuals P3 (£) | O98: Budget P4 (£) | P98: Actuals P4 (£) | Q98: Total Budget | R98: Total Actual | S98: Variance (£) | T98: Reason for any difference +/- £1,000
F99: =E99*D99 -> 0 | G99: =IF($F$150=0,"",F99/$F$150) ->  | Q99: =IF(SUMIF($I$11:$P$11,"*budget*",$I99:$P99)=F99,SUMIF($I$11:$P$11,"*budget*",$I99:$P99),"Error in Period Budget") -> 0 | R99: =SUMIF($I$11:$P$11,"*actual*",$I99:$P99) -> 0 | S99: =F99-R99 -> 0
F100: 0 | Q100: 0 | R100: 0 | S100: 0
F101: 0 | Q101: 0 | R101: 0 | S101: 0
F102: 0 | Q102: 0 | R102: 0 | S102: 0
F103: 0 | Q103: 0 | R103: 0 | S103: 0
F104: 0 | Q104: 0 | R104: 0 | S104: 0
F105: 0 | Q105: 0 | R105: 0 | S105: 0
F106: 0 | Q106: 0 | R106: 0 | S106: 0
F107: 0 | Q107: 0 | R107: 0 | S107: 0
F108: 0 | Q108: 0 | R108: 0 | S108: 0
B109: Total | F109: =SUM(F99:F108) -> 0 | G109: 0 | I109: 0 | J109: 0 | K109: 0 | L109: 0 | M109: 0 | N109: 0 | O109: 0 | P109: 0 | Q109: =SUM(Q99:Q108) -> 0 | R109: 0 | S109: 0
B111: Equipment | C111: Units e.g. days | D111: Number | E111: Unit Cost £ | F111: Total (£) | G111: % of project costs | I111: Budget P1 (£) | J111: Actuals P1 (£) | K111: Budget P2 (£) | L111: Actuals P2 (£) | M111: Budget P3 (£) | N111: Actuals P3 (£) | O111: Budget P4 (£) | P111: Actuals P4 (£) | Q111: Total Budget | R111: Total Actual | S111: Variance (£) | T111: Reason for any difference +/- £1,000
F112: =E112*D112 -> 0 | G112: =IF($F$150=0,"",F112/$F$150) ->  | Q112: =IF(SUMIF($I$11:$P$11,"*budget*",$I112:$P112)=F112,SUMIF($I$11:$P$11,"*budget*",$I112:$P112),"Error in Period Budget") -> 0 | R112: =SUMIF($I$11:$P$11,"*actual*",$I112:$P112) -> 0 | S112: =F112-R112 -> 0
F113: 0 | Q113: 0 | R113: 0 | S113: 0
F114: 0 | Q114: 0 | R114: 0 | S114: 0
F115: 0 | Q115: 0 | R115: 0 | S115: 0
F116: 0 | Q116: 0 | R116: 0 | S116: 0
F117: 0 | Q117: 0 | R117: 0 | S117: 0
F118: 0 | Q118: 0 | R118: 0 | S118: 0
F119: 0 | Q119: 0 | R119: 0 | S119: 0
F120: 0 | Q120: 0 | R120: 0 | S120: 0
F121: 0 | Q121: 0 | R121: 0 | S121: 0
B122: Total | F122: =SUM(F112:F121) -> 0 | G122: 0 | I122: 0 | J122: 0 | K122: 0 | L122: 0 | M122: 0 | N122: 0 | O122: 0 | P122: 0 | Q122: =SUM(Q112:Q121) -> 0 | R122: 0 | S122: 0
B124: Other (please provide breakdown of any costs that do not fit into other areas of ths budget) | C124: Units e.g. days | D124: Number | E124: Unit Cost £ | F124: Total (£) | G124: % of project costs | I124: Budget P1 (£) | J124: Actuals P1 (£) | K124: Budget P2 (£) | L124: Actuals P2 (£) | M124: Budget P3 (£) | N124: Actuals P3 (£) | O124: Budget P4 (£) | P124: Actuals P4 (£) | Q124: Total Budget | R124: Total Actual | S124: Variance (£) | T124: Reason for any difference +/- £1,000
F125: =E125*D125 -> 0 | G125: =IF($F$150=0,"",F125/$F$150) ->  | Q125: =IF(SUMIF($I$11:$P$11,"*budget*",$I125:$P125)=F125,SUMIF($I$11:$P$11,"*budget*",$I125:$P125),"Error in Period Budget") -> 0 | R125: =SUMIF($I$11:$P$11,"*actual*",$I125:$P125) -> 0 | S125: =F125-R125 -> 0
F126: 0 | Q126: 0 | R126: 0 | S126: 0
F127: 0 | Q127: 0 | R127: 0 | S127: 0
F128: 0 | Q128: 0 | R128: 0 | S128: 0
F129: 0 | Q129: 0 | R129: 0 | S129: 0
F130: 0 | Q130: 0 | R130: 0 | S130: 0
F131: 0 | Q131: 0 | R131: 0 | S131: 0
F132: 0 | Q132: 0 | R132: 0 | S132: 0
F133: 0 | Q133: 0 | R133: 0 | S133: 0
F134: 0 | Q134: 0 | R134: 0 | S134: 0
B135: Total | F135: =SUM(F125:F134) -> 0 | G135: 0 | I135: 0 | J135: 0 | K135: 0 | L135: 0 | M135: 0 | N135: 0 | O135: 0 | P135: 0 | Q135: =SUM(Q125:Q134) -> 0 | R135: 0 | S135: 0
B137: Evaluation (for projects where ScreenSkills fuding amounts to £50,000 + only will require and independent audit. Remember to budget for this) | C137: Units e.g. days | D137: Number | E137: Unit Cost £ | F137: Total (£) | G137: % of project costs | I137: Budget P1 (£) | J137: Actuals P1 (£) | K137: Budget P2 (£) | L137: Actuals P2 (£) | M137: Budget P3 (£) | N137: Actuals P3 (£) | O137: Budget P4 (£) | P137: Actuals P4 (£) | Q137: Total Budget | R137: Total Actual | S137: Variance (£) | T137: Reason for any difference +/- £1,000
F138: =E138*D138 -> 0 | G138: =IF($F$150=0,"",F138/$F$150) ->  | Q138: =IF(SUMIF($I$11:$P$11,"*budget*",$I138:$P138)=F138,SUMIF($I$11:$P$11,"*budget*",$I138:$P138),"Error in Period Budget") -> 0 | R138: =SUMIF($I$11:$P$11,"*actual*",$I138:$P138) -> 0 | S138: =F138-R138 -> 0
F139: 0 | Q139: =IF(SUMIF($I$11:$P$11,"*budget*",$I139:$P139)=F139,SUMIF($I$11:$P$11,"*budget*",$I139:$P139),"Error in Period Budget") -> 0 | R139: 0 | S139: 0
F140: 0 | Q140: 0 | R140: 0 | S140: 0
F141: 0 | Q141: 0 | R141: 0 | S141: 0
F142: 0 | Q142: 0 | R142: 0 | S142: 0
F143: 0 | Q143: 0 | R143: 0 | S143: 0
F144: 0 | Q144: 0 | R144: 0 | S144: 0
F145: 0 | Q145: 0 | R145: 0 | S145: 0
F146: 0 | Q146: 0 | R146: 0 | S146: 0
F147: 0 | Q147: 0 | R147: 0 | S147: 0
B148: Total | F148: =SUM(F138:F147) -> 0 | G148: 0 | I148: 0 | J148: 0 | K148: 0 | L148: 0 | M148: 0 | N148: 0 | O148: 0 | P148: 0 | Q148: =SUM(Q138:Q147) -> 0 | R148: 0 | S148: 0
B150: TOTAL PROJECT EXPENDITURE - ( C ) | F150: =F57+F70+F83+F96+F109+F135+F122+F148 -> 0 | G150: =G57+G70+G83+G96+G109+G135+G122+G148 -> 0 | I150: =I148+I135+I122+I109+I96+I83+I57+I70 -> 0 | J150: 0 | K150: 0 | L150: 0 | M150: 0 | N150: 0 | O150: 0 | P150: 0 | Q150: =Q148+Q135+Q122+Q109+Q96+Q83+Q57+Q70 -> 0 | R150: 0 | S150: 0
C152: ScreenSkills USE ONLY | I152: ScreenSkills USE ONLY
C154: Project Summary | I154: =I137 -> Budget P1 (£) | J154: Actuals P1 (£) | K154: Budget P2 (£) | L154: Actuals P2 (£) | M154: Budget P3 (£) | N154: Actuals P3 (£) | O154: Budget P4 (£) | P154: Actuals P4 (£) | Q154: Total Budget | R154: Total Actual | S154: Variance
C155: Total Project Income | F155: =F39 -> 0 | I155: =I39 -> 0 | J155: 0 | K155: 0 | L155: 0 | M155: 0 | N155: 0 | O155: 0 | P155: 0 | Q155: =SUMIF($I$11:$P$11,"*budget*",$I155:$P155) -> 0 | R155: =SUMIF($I$11:$P$11,"*actual*",$I155:$P155) -> 0 | S155: =F155-R155 -> 0
C156: Total Project Expenditure | F156: =F150 -> 0 | I156: =I150 -> 0 | J156: 0 | K156: 0 | L156: 0 | M156: 0 | N156: 0 | O156: 0 | P156: 0 | Q156: =SUMIF($I$11:$P$11,"*budget*",$I156:$P156) -> 0 | R156: =SUMIF($I$11:$P$11,"*actual*",$I156:$P156) -> 0 | S156: =F156-R156 -> 0
C157: Total Project Cost (expenditure minus income) | F157: =F156-F155 -> 0 | I157: =I155-I156 -> 0 | J157: 0 | K157: 0 | L157: 0 | M157: 0 | N157: 0 | O157: 0 | P157: 0 | Q157: =Q155-Q156 -> 0 | R157: 0 | S157: 0
B159: Narrative on Overheads & Project Management Costs
B160: Please use this section to tell us how you have calculated your overheads and project management costs:
B175: Notes to the Budget

Sheet 2. Risk Analysis
B2: Risk Analysis
B3: On this tab you should identify the risks, constraints and dependencies in delivering the project and outline how these will be managed. Please describe how these risks will be monitored and reported.
B4: This is an example please complete the table below this one
B5: Risk | C5: Description of Impact | D5: How to Mitigate risk | E5: Course of action if risk becomes reality (i.e. what is flexible, what are our limits) | F5: High/Medium/low
B6: Participants Ability to recruit the target number that have the required level of skills/experience. | C6: The course is aimed at tutoring 8 participants- with specific area of expertise in the camera department. With high-fee commitment's to industry expert tutors of £20K the right calibre of participants should be recruited. The number of participants, their availability, calibre of participants and applicants are relying on word of mouth and marketing to the industry. | D6: Assess the response from the high level talent. Lower the participant’s level- more intermediate than high level/ supervisor types. Targeted marketing Look at all key personnel involved availability in running at a later date. | E6: Reassess participant targets Could lower target to 6 participants or participant grade | F6: Medium.
B7: Course Content Is the course curriculum the right level for participants? | C7: The course is split in to 2 parts- first two weeks are craft and technical based; the second part is aimed at on-set working practices with seminars and masterclasses. | D7: Securing the key industry professionals to feed in to structure Attract the intermediate level talent Finding the right tutors to complement the overall aims of the project. | E7: Could make the first part of the course one week followed by one week of the masterclass Tutors to review curriculum once participants are recruited to ensure suitabiilty | F7: Medium.
B8: Training providers Do the tutors have the required skills/experience? | C8: Experienced training providers taking on and delivering the first course/pilot. | D8: Ensure recruitment process is robust Utilise network of contacts for suitable recommendations Use companies that have been used before | E8: Give as much support/ advice and help as possible and be more involved in having a presence during the course. | F8: Low. The company are experienced Training providers with a good track record of delivering training in this sector.
B9: Dates The chosen dates result in low applicant numbers | C9: Is August an appropriate time for key industry talent to take training? High level Participants availability Tutors availabilty | D9: Ensure detailed research is conducted and key industry figures are consulted. Ask key industry personnel about timings against the greenlight/ pre-production start dates Consider time of date and length of course | E9: Our limit is to run the course in current financial year Summer productions could have a knock on effect for both participants and tutors. Could lower the participant criteria to ensure numbers. | F9: Medium/High
B11: Risk | C11: Description of Impact | D11: How to Mitigate risk | E11: Course of action if risk becomes reality (i.e. what is flexible, what are our limits) | F11: High/Medium/low

Sheet 3. Project Report
B2: Project Details
B4: The name of your organisation: | C4: ='1. Budget vs Actual'!E2 -> Please add | F4: Colour code progress:
B5: Project title: | C5: ='1. Budget vs Actual'!E3 -> Please add | F5: ON TARGET
B6: Project start date: | D6: Project end date: | F6: MINOR ISSUES
B7: Course start date: | D7: Course end date: | F7: SERIOUS ISSUES
B8: Closing date for applications: | F8: NO CHANGE
B10: Please report on your activity when submitting your claim for that period. Please use the colour coding shown above.
B11: PARTICIPANT NUMBERS
B12: Activity | C12: Expected Date for completion | D12: What will success look like? | E12: How will this be measured? | F12: Period 1 | G12: Period 2 | H12: Period 3 | I12: Period 4
F13: Progress, including any unexpected results or budget variance updated with each claim | G13: Progress, including any unexpected results or budget variance updated with each claim | H13: Progress, including any unexpected results or budget variance updated with each claim | I13: Progress, including any unexpected results or budget variance updated with each claim
B23: TRAINING
B24: Activity | C24: Course / Session Dates | D24: What will success look like? | E24: How will this be measured? | F24: Period 1 | G24: Period 2 | H24: Period 3 | I24: Period 4
F25: Progress, including any unexpected results or budget variance updated with each claim | G25: Progress, including any unexpected results or budget variance updated with each claim | H25: Progress, including any unexpected results or budget variance updated with each claim | I25: Progress, including any unexpected results or budget variance updated with each claim
B34: PROJECT MANAGEMENT
B35: Activity | C35: Expected Date for completion | D35: What will success look like? | E35: How will this be measured? | F35: Period 1 | G35: Period 2 | H35: Period 3 | I35: Period 4
F36: Progress, including any unexpected results or budget variance updated with each claim | G36: Progress, including any unexpected results or budget variance updated with each claim | H36: Progress, including any unexpected results or budget variance updated with each claim | I36: Progress, including any unexpected results or budget variance updated with each claim
B45: MARKETING / RECRUITMENT
B46: Activity | C46: Expected Date for completion | D46: What will success look like? | E46: How will this be measured? | F46: Period 1 | G46: Period 2 | H46: Period 3 | I46: Period 4
F47: Progress, including any unexpected results or budget variance updated with each claim | G47: Progress, including any unexpected results or budget variance updated with each claim | H47: Progress, including any unexpected results or budget variance updated with each claim | I47: Progress, including any unexpected results or budget variance updated with each claim
B48: Marketing
B54: Recruitment
B61: EVALUATION
B62: Learning Outcomes (Stated in your application) | C62: Expected Date for completion | D62: What will success look like? | E62: How will this be measured? | F62: Period 1 | G62: Period 2 | H62: Period 3 | I62: Period 4
F63: Progress, including any unexpected results or budget variance updated with each claim | G63: Progress, including any unexpected results or budget variance updated with each claim | H63: Progress, including any unexpected results or budget variance updated with each claim | I63: Progress, including any unexpected results or budget variance updated with each claim

Sheet 4. Claim Form
B3: Claim Form | C3: ScreenSkills USE ONLY
B5: Organisation Name: | C5: ='1. Budget vs Actual'!E2 -> Please add
B6: Project Title: | C6: ='1. Budget vs Actual'!E3 -> Please add
B7: Project Ref No: | C7: ='1. Budget vs Actual'!E4 -> ScreenSkills generated
B9: Payments will be deposited in the following account:
B11: Bank Name: | C11: Please enter
B12: Account Name: | C12: Please enter
B13: Sort Code: | C13: Please enter
B14: Account Number: | C14: Please enter
B16: Period for which funds are requested:
B18: SUMMARY | D18: £ | E18: %
B19: Projected total expenditure | D19: ='1. Budget vs Actual'!F150 -> 0 | E19: 1
B20: Agreed Grant | D20: ='1. Budget vs Actual'!F36 -> 0 | E20: =D20/D19 -> 
B23: ACTUALS | D23: £ | E23: %
B24: Total Actual Spend To Date | D24: ='1. Budget vs Actual'!R150 -> 0 | E24: =D24/D19 -> 
B25: Total Actual Income Partnership Funding CASH | D25: ='1. Budget vs Actual'!R19 -> 0 | E25: =D25/D19 -> 
B26: Total Actual Income Partnership Funding IN-KIND | D26: ='1. Budget vs Actual'!R29 -> 0 | E26: =D26/D19 -> 
B27: ScreenSkills funds claimed to date | D27: ='1. Budget vs Actual'!R36 -> 0 | E27: =D27/D19 -> 
B29: (Surplus)/Deficit At End Of Previous Period | D29: =D24-D25-D26-D27 -> 0 | E29: =D29/D19 -> 
B31: Final 10% Retention | D31: =D20*0.1 -> 0 | E31: =IF(D31=0,"",D31/D19) -> 
B32: Remaining Grant to Claim during project less 10% retention | D32: =D20-D27-D31 -> 0 | E32: =IF(D32=0,"",D32/D19) -> 
B35: Total Amount Due: | D35: =D29 -> 0
B40: Signed by Grantee: | D40: Date:
B41: Position:
B42: ScreenSkills Internal Authorisation: | D42: Date:
B71: For ScreenSkills use only
B73: Payment will be made according to the Contract Payment Schedule.
B75: Claim examined. I certify there is proper authority for the activity funded and no item in this claim has previously been passed for payment:
B76: I certify that the activity has been carried out satisfactorily, the outcomes have been achieved and are satisfactory, the amounts claimed have been
B77: checked and are correct and the terms and conditions of the Agreement expressed or implied have been met:
B79: Position:
B82: Signature:
B85: To be paid from:
B86: Lottery | C86: R2100
B87: SIF | C87: R2000
